fUSD/lending_fUSD_20240123
["ID","MTS","AMOUNT","RATE_DAILY","PERIOD"]
[312555949,1705983038474,-150.0,0.00022999,2]
[312555951,1705983038484,-853.0,0.00023,2]
[312555953,1705983038492,-168.0482254,0.00023,2]
[312555955,1705983038503,-206091.60023624,0.00023,2]
[312555957,1705983038511,-145664.93192664,0.00023,2]
[312555959,1705983038521,-157.45099346,0.00023,2]
[312555961,1705983038530,-10427708.98528842,0.00023,2]
[312555964,1705983038542,-339.76143095,0.00023,2]
[312555966,1705983038553,-714.90784869,0.00023,2]
[312555968,1705983038565,-583.917648,0.00023,2]
[312555970,1705983038575,-416.57076621,0.00023,2]
[312555973,1705983038587,-15097.76560147,0.00023,2]
[312555982,1705983038671,-99235.48301716,0.00023,2]
[312555987,1705983038708,-15570.04461585,0.00023,2]
[312555997,1705983040505,-1204.525,0.00023,2]
[312555998,1705983041012,-1267.80842534,0.00023,2]
[312555999,1705983041024,-637.26935831,0.00023,2]
[312556000,1705983041054,-1423.38495996,0.00023,2]
[312556001,1705983041065,-1144.30247433,0.00023,2]
[312556002,1705983041076,-4111.95845852,0.00023,2]
[312556003,1705983041322,-998.486475,0.00023,2]
[312556004,1705983041342,-272.460005,0.00023,2]
[312556034,1705983043063,-548.78188292,0.00023,2]
[312556035,1705983043121,-458.44261812,0.00023,2]
[312556036,1705983043133,-2025.22,0.00023,2]
[312556037,1705983043144,-2409.3905541,0.00023,2]
[312556038,1705983043291,-510.5000003,0.00023,2]
[312556039,1705983043353,-2343.59286115,0.00023,2]
[312556040,1705983043364,-1546.45892073,0.00023,2]
[312556041,1705983043410,-1521.56675804,0.00023,2]
[312556042,1705983043422,-1300.1326,0.00023,2]
[312556045,1705983046661,-2859.71598182,0.00023,2]
[312556046,1705983046784,-299.404,0.00023,2]
[312556047,1705983046911,-505.85696838,0.00023,2]
[312556051,1705983486270,550.01,0.0002075,2]
[312556057,1705984048468,543.99,0.0001999,2]
[312556058,1705984230154,157.45099346,0.0001999,2]
[312556065,1705984234170,-354.87715265,0.00021847,2]
[312556066,1705984234181,-524.31366153,0.00021847,2]
[312556067,1705984234191,-809.23278582,0.00021848,2]
[312556068,1705984234203,-402.42168,0.00021848,2]
[312556069,1705984234216,-258.46553418,0.00021848,2]
[312556070,1705984234225,-24.12716335,0.00021903,2]
[312556071,1705984234237,-181.87283665,0.00021903,2]
[312556072,1705984234247,-189.59,0.00021908,2]
[312556073,1705984234257,-142.76886335,0.00021922,2]
[312556074,1705984234288,-19.34969192,0.00021922,2]
[312556075,1705984234298,-276.07,0.00021988,2]
[312556076,1705984234307,-165.73,0.00022022,2]
[312556077,1705984234316,-282.6,0.00022029,2]
[312556078,1705984234326,-155.92,0.00022128,2]
[312556079,1705984234335,-543.99,0.00022254,2]
[312556080,1705984234344,-268.31734558,0.0002241,2]
[312556081,1705984234357,-388.57521595,0.0002241,2]
[312556082,1705984234368,-65.69743847,0.0002241,2]
[312556083,1705984234378,-717.4,0.00022411,2]
[312556084,1705984234387,-322.76887418,0.00022411,2]
[312556085,1705984234499,-331.62881422,0.00022411,2]
[312556086,1705984234573,-804.0,0.00022411,2]
[312556087,1705984234585,-271.99771827,0.00022411,2]
[312556091,1705984234614,-1983.88459333,0.00022411,2]
[312556093,1705984234623,-51.99945399,0.0002245,2]
[312556097,1705984234659,-677.29054601,0.0002245,2]
[312556099,1705984234668,-730.45,0.00022489,2]
[312556101,1705984234677,-734.23,0.00022597,2]
[312556103,1705984234686,-737.5,0.00022597,2]
[312556105,1705984234696,-719.92,0.00022597,2]
[312556107,1705984234705,-481.1909671,0.00022679,2]
[312556123,1705984238269,-255.3290329,0.00022679,2]
[312556124,1705984238509,-393.1938994,0.00022697,2]
[312556125,1705984238535,-258.61400001,0.00022697,2]
[312556126,1705984238556,-65.00210059,0.00022697,2]
[312556127,1705984238565,-733.06,0.00022698,2]
[312556128,1705984238574,-237.94256784,0.00022698,2]
[312556129,1705984238585,-489.48743216,0.00022698,2]
[312556130,1705984238594,-726.31,0.00022698,2]
[312556131,1705984238603,-709.8,0.00022699,2]
[312556132,1705984238613,-1405.8294,0.00022699,2]
[312556133,1705984238622,-1047.5073,0.00022699,2]
[312556134,1705984238631,-189.59,0.00022718,2]
[312556135,1705984238641,-1685.12963775,0.00022798,2]
[312556136,1705984238652,-627.74580422,0.00022798,2]
[312556137,1705984238665,-574.98736815,0.00022798,2]
[312556138,1705984238700,-9423.40226214,0.00022798,2]
[312556139,1705984238709,-19184.43240971,0.00022798,2]
[312556141,1705984238717,-13949.89640961,0.00022799,2]
[312556143,1705984238728,-60489.38488394,0.00022799,2]
[312556144,1705984238739,-62347.47892638,0.00022799,2]
[312556145,1705984238750,-4985.90263813,0.00022799,2]
[312556146,1705984238773,-24910.83213083,0.00022799,2]
[312556147,1705984238784,-784.20550947,0.00022799,2]
[312556159,1705984243433,-251.58,0.00022799,2]
[312556160,1705984243491,-1587.86351366,0.00022799,2]
[312556161,1705984243504,-10346.14410703,0.00022799,2]
[312556162,1705984243516,-452.25615153,0.00022799,2]
[312556163,1705984243527,-359.45574608,0.00022799,2]
[312556164,1705984243541,-4691.75654976,0.00022799,2]
[312556165,1705984243555,-322.25706152,0.00022799,2]
[312556166,1705984243656,-1076.38685211,0.00022799,2]
[312556167,1705984243669,-2563.57660279,0.00022799,2]
[312556168,1705984243680,-3143.67720964,0.00022799,2]
[312556169,1705984243692,-5905.04663677,0.00022799,2]
[312556170,1705984243704,-1642.9,0.00022799,2]
[312556171,1705984243725,-14029.48487075,0.00022799,2]
[312556172,1705984243735,-39849.52548162,0.00022799,2]
[312556173,1705984243788,-701.33067573,0.00022799,2]
[312556174,1705984243807,-59449.14384265,0.00022799,2]
[312556175,1705984243816,-2198.00323499,0.00022898,2]
[312556176,1705984243826,-712.13,0.00022998,2]
[312556177,1705984243836,-1122.00634499,0.00022998,2]
[312556178,1705984243845,-7009.02780133,0.00022998,2]
[312556179,1705984243857,-8189.01949822,0.00022998,2]
[312556180,1705984243867,-172.63960443,0.00022998,2]
[312556181,1705984243877,-2228.35229138,0.00022998,2]
[312556182,1705984243886,-2392.51352636,0.00022998,2]
[312556183,1705984243896,-216.06139485,0.00022998,2]
[312556184,1705984243906,-989.17200042,0.00022998,2]
[312556185,1705984243918,-878.49394085,0.00022998,2]
[312556190,1705984243978,-815.42959744,0.00022998,2]
[312556192,1705984243990,-3450.71081459,0.00022998,2]
[312556194,1705984244094,-3366.91000823,0.00022998,2]
[312556195,1705984244106,-316.25927274,0.00022998,2]
[312556196,1705984244116,-217.39856975,0.00022998,2]
[312556197,1705984244126,-155.0,0.00022998,2]
[312556198,1705984244135,-582.04048058,0.00022998,2]
[312556199,1705984244145,-2062.78291425,0.00022998,2]
[312556200,1705984244155,-2909.7863307,0.00022998,2]
[312556201,1705984244164,-2858.66994441,0.00022998,2]
[312556202,1705984244175,-386.42578897,0.00022998,2]
[312556203,1705984244187,-5365.56039002,0.00022998,2]
[312556204,1705984244196,-154.6198058,0.00022998,2]
[312556205,1705984244205,-5032.13820418,0.00022998,2]
[312556206,1705984244216,-356.16005982,0.00022998,2]
[312556207,1705984244226,-3.57850237,0.00022998,2]
[312556210,1705984246285,-626.86484445,0.00022998,2]
[312556214,1705984246456,-383.10603229,0.00022998,2]
[312556215,1705984246548,-328.8000002,0.00022998,2]
[312556216,1705984246560,-1324.1515658,0.00022998,2]
[312556217,1705984324190,205.0,0.00020903,2]
[312556218,1705984369786,-2286.3285,0.00021748,2]
[312556219,1705984369807,-1113.6715,0.00022698,2]
[312556220,1705984485176,531.41,0.00020732,2]
[312556222,1705984764743,17228.41024828,0.00020732,2]
[312556223,1705984803034,6088.06824423,0.00020732,2]
[312556224,1705984988316,525.21,0.00019842,2]
[312556225,1705985052075,190.10040705,0.00019842,2]
[312556226,1705985052393,500.0,0.00019842,2]
[312556227,1705985052690,1018.94191937,0.00019842,2]
[312556228,1705985058072,1278.88025573,0.00019842,5]
[312556229,1705985062154,291.48413995,0.00019842,2]
[312556230,1705985064328,376.36014815,0.00019842,2]
[312556231,1705985076067,1278.88025573,0.00019842,5]
[312556232,1705985098059,1416.2766383,0.00019842,5]
[312556233,1705985181224,350.36534944,0.00022999,10]
[312556234,1705985373845,206.0,0.00020075,2]
[312556259,1705985431472,-773.92,0.00021327,2]
[312556260,1705985431485,-174.45102702,0.00021355,2]
[312556261,1705985431495,-276.07,0.00021356,2]
[312556262,1705985431504,-162.11855526,0.00021376,2]
[312556263,1705985431514,-736.37,0.00021428,2]
[312556264,1705985431524,-1102.25903785,0.00021439,2]
[312556265,1705985431553,-643.66096215,0.00021439,2]
[312556266,1705985431564,-250.0,0.00021476,2]
[312556267,1705985431574,-477.4,0.00021532,2]
[312556268,1705985431583,-1321.00881317,0.0002158,2]
[312556269,1705985431596,-237.86118683,0.0002158,2]
[312556270,1705985431605,-955.58,0.0002162,2]
[312556271,1705985431616,-1442.99354152,0.00021623,2]
[312556272,1705985431629,-120.70645848,0.00021623,2]
[312556273,1705985431639,-206.0,0.00021739,4]
[312556274,1705985431649,-99.38565119,0.0002175,2]
[312556275,1705985431661,-52.73434881,0.0002175,2]
[312556276,1705985431670,-211.81565119,0.0002178,2]
[312556277,1705985431683,-14.26434881,0.0002178,2]
[312556278,1705985431693,-1506.78555803,0.00021817,2]
[312556279,1705985431710,-381.33444197,0.00021817,2]
[312556280,1705985431720,-59.16604018,0.00021828,2]
[312556301,1705985437524,-1309.63395982,0.00021828,2]
[312556302,1705985437534,-154.73,0.00021947,2]
[312556303,1705985437544,-525.21,0.00022105,2]
[312556304,1705985437554,-165.43,0.00022309,2]
[312556305,1705985437564,-727.65,0.00022313,2]
[312556306,1705985437573,-713.4,0.00022322,2]
[312556307,1705985437584,-731.39,0.00022335,2]
[312556308,1705985437594,-734.92,0.00022354,2]
[312556309,1705985437604,-1049.85,0.00022371,2]
[312556310,1705985437613,-716.36,0.00022371,2]
[312556311,1705985437623,-734.07,0.0002239,2]
[312556312,1705985437634,-713.64,0.00022415,2]
[312556313,1705985437645,-152.12,0.00022554,2]
[312556314,1705985437655,-714.73,0.00022599,2]
[312556315,1705985437664,-4774.3556,0.00022599,2]
[312556316,1705985437675,-155.0,0.00022697,2]
[312556317,1705985437685,-1379.62658056,0.00022697,2]
[312556318,1705985437696,-718.92,0.00022698,2]
[312556319,1705985437706,-718.21,0.00022698,2]
[312556320,1705985437715,-735.34,0.00022698,2]
[312556321,1705985437726,-1390.97258508,0.00022698,2]
[312556322,1705985437735,-85612.463701,0.00022699,2]
[312556332,1705985437894,-2086.42365342,0.00022699,2]
[312556344,1705985437990,-1034.07965515,0.00022699,2]
[312556414,1705985440675,-1313.70377315,0.00022699,2]
[312556438,1705985442714,-3090.36040601,0.00022699,2]
[312556440,1705985445518,-3441.49867248,0.00022699,2]
[312556441,1705985445575,-455.8499999,0.00022699,2]
[312556442,1705985445589,-1089.96775388,0.00022699,2]
[312556443,1705985447158,-1102.74167354,0.00022699,2]
[312556444,1705985447175,-4613.65668647,0.00022699,2]
[312556445,1705985447199,-4675.11,0.00022699,2]
[312556446,1705985463699,587.6,0.00020946,2]
[312556447,1705985463963,204.0,0.00020075,2]
[312556448,1705985464767,1303.30270929,0.00020608,2]
[312556449,1705985515289,270.64795926,0.00018133,2]
[312556450,1705985681678,1081.97867248,0.000229,6]
[312556451,1705985839574,164.96,0.00017383,2]
[312556452,1705986070469,578.57,0.00019801,2]
[312556455,1705986454373,206.0,0.00020402,2]
[312556456,1705986507668,549.64,0.00019735,2]
[312556466,1705986631661,-2505.78776269,0.00021602,2]
[312556467,1705986631671,-766.57288119,0.00021602,2]
[312556468,1705986631717,-310.0,0.00021602,2]
[312556469,1705986631879,-671.04925394,0.00021602,2]
[312556470,1705986631893,-366.91487999,0.00021602,2]
[312556471,1705986631934,-1033.05439867,0.00021602,2]
[312556472,1705986631947,-1448.35,0.00021603,2]
[312556473,1705986631963,-161.4886656,0.00021609,2]
[312556474,1705986631978,-300.0,0.00021619,2]
[312556476,1705986631993,-619.14,0.00021621,2]
[312556478,1705986632006,-161.6,0.00021644,2]
[312556480,1705986632018,-380.86,0.00021713,2]
[312556483,1705986632030,-165.43,0.00021819,2]
[312556484,1705986632043,-159.17,0.00021846,2]
[312556485,1705986632057,-155.92,0.00021883,2]
[312556487,1705986632070,-549.64,0.00021999,2]
[312556489,1705986632084,-270.6360857,0.00022,2]
[312556491,1705986632097,-150.81198338,0.00022,2]
[312556493,1705986632109,-154.93,0.00022148,2]
[312556495,1705986632123,-206.0,0.00022202,4]
[312556497,1705986632133,-724.43,0.00022222,2]
[312556499,1705986632145,-726.07,0.00022345,2]
[312556501,1705986632159,-724.51,0.00022487,2]
[312556502,1705986632173,-552.70610006,0.0002256,2]
[312556504,1705986632191,-171.55389994,0.0002256,2]
[312556505,1705986632202,-154.93,0.00022564,2]
[312556506,1705986632214,-685.74958772,0.00022568,2]
[312556512,1705986637621,-150.0,0.00021576,2]
[312556513,1705986637633,-27.23041228,0.00022568,2]
[312556514,1705986637644,-3808.0546,0.00022568,2]
[312556515,1705986637656,-734.85,0.00022579,2]
[312556516,1705986637670,-715.84,0.00022595,2]
[312556517,1705986637681,-3839.2376,0.00022599,2]
[312556518,1705986637693,-236.12532768,0.00022666,2]
[312556519,1705986637704,-108465.18694234,0.00022668,2]
[312556520,1705986637716,-22703.52656652,0.00022669,2]
[312556521,1705986637727,-503.15147895,0.00022669,2]
[312556522,1705986637738,-722.11,0.00022669,2]
[312556523,1705986637749,-175.74031009,0.00022695,2]
[312556524,1705986637760,-726.92,0.00022699,2]
[312556525,1705986637771,-161.6,0.00022712,2]
[312556526,1705986637782,-3885.08376603,0.000228,3]
[312556527,1705986637793,-2136.1659,0.000228,2]
[312556528,1705986637804,-14258.4896,0.000228,2]
[312556529,1705986637815,-500.0,0.000228,2]
[312556530,1705986637826,-171.16655219,0.00022898,2]
[312556531,1705986637836,-1177.16887121,0.00022898,2]
[312556532,1705986637848,-1901.78347246,0.00022899,2]
[312556533,1705986637858,-1923.25283059,0.000229,2]
[312556534,1705986637869,-240.1123864,0.000229,2]
[312556535,1705986637880,-154.93,0.00022981,2]
[312556536,1705986637891,-12311.26507226,0.00022996,2]
[312556537,1705986637902,-2373.02702868,0.00022997,3]
[312556538,1705986637914,-588.9503371,0.00022997,2]
[312556539,1705986637925,-355.78491098,0.00022997,2]
[312556540,1705986637936,-76662.0653635,0.00022997,2]
[312556541,1705986637947,-1945.5015087,0.00022997,2]
[312556542,1705986637957,-32358.8100393,0.00022997,2]
[312556543,1705986637968,-1600.550716,0.00022997,2]
[312556544,1705986637979,-5961.5152544,0.00022997,2]
[312556545,1705986637990,-1710.31020709,0.00022999,2]
[312556546,1705986638001,-150.95099668,0.00022999,2]
[312556547,1705986638011,-1066.49373684,0.00022999,2]
[312556548,1705986638023,-1969.38848745,0.00022999,2]
[312556549,1705986638034,-150.0,0.00022999,2]
[312556550,1705986638045,-241.63729881,0.00022999,2]
[312556551,1705986638056,-151.74081175,0.00022999,2]
[312556552,1705986638066,-150.0,0.00022999,2]
[312556553,1705986638077,-241.63729881,0.00022999,2]
[312556554,1705986638088,-150.0,0.00022999,2]
[312556555,1705986638100,-241.63729881,0.00022999,2]
[312556556,1705986638111,-150.0,0.00022999,2]
[312556557,1705986638121,-241.63729881,0.00022999,2]
[312556558,1705986638132,-150.0,0.00022999,2]
[312556559,1705986638142,-241.63729881,0.00022999,2]
[312556560,1705986638154,-150.0,0.00022999,2]
[312556561,1705986638164,-241.63729881,0.00022999,2]
[312556562,1705986638176,-150.0,0.00022999,2]
[312556563,1705986638187,-241.63729881,0.00022999,2]
[312556564,1705986638198,-805.0,0.00023,2]
[312556565,1705986638209,-168.0482254,0.00023,2]
[312556566,1705986638220,-49805.91,0.00023,2]
[312556567,1705986638231,-451329.30447554,0.00023,2]
[312556568,1705986638242,-716.77,0.00023,2]
[312556569,1705986638255,-511.00063774,0.00023,2]
[312556570,1705986638266,-10170723.64488648,0.00023,2]
[312556571,1705986639250,-90585.24114943,0.00023,2]
[312556572,1705986639277,-150.0,0.00022242,2]
[312556573,1705986639287,-34242.57790869,0.00023,2]
[312556574,1705986639307,-1428.0,0.00023,2]
[312556575,1705986639335,-404.64145571,0.00023,2]
[312556579,1705986640153,-303.9607997,0.00023,2]
[312556580,1705986640169,-367.59890107,0.00023,2]
[312556581,1705986640183,-480.16816914,0.00023,2]
[312556582,1705986640296,-8783.40059011,0.00023,2]
[312556605,1705986642670,-1548.45098429,0.00023,2]
[312556606,1705986642681,-4612.74476516,0.00023,2]
[312556607,1705986642834,-632.70455282,0.00023,2]
[312556608,1705986642846,-264.1135013,0.00023,2]
[312556609,1705986642857,-306.0,0.00023,2]
[312556610,1705986642868,-160721.32965717,0.00023,2]
[312556634,1705986645706,-919.35463666,0.00022999,2]
[312556635,1705986645765,-1707.28085174,0.00022999,2]
[312556636,1705986645775,-2560.78370546,0.00023,2]
[312556637,1705986646090,-408.1979072,0.00023,2]
[312556638,1705986647630,156.22271469,0.00017762,2]
[312556639,1705986663985,204.0,0.00020402,2]
[312556640,1705986665414,1303.30270929,0.00020699,2]
[312556641,1705986717935,1098.80867034,0.00020699,2]
[312556642,1705986734086,1243.26452789,0.00020699,2]
[312556643,1705987055148,341.2,0.00033,30]
[312556644,1705987082891,513.93,0.00019337,2]
[312556645,1705987503671,182.33,0.00021,2]
[312556646,1705987518973,250.0,0.00020968,2]
[312556647,1705987547162,155.0,0.00021001,2]
[312556648,1705987555935,270.31068666,0.00021001,2]
[312556649,1705987573718,488.23,0.00019176,2]
[312556650,1705987704536,270.31068666,0.00021001,2]
[312556651,1705987766449,610.57725012,0.00021001,2]
[312556652,1705987780391,610.57725012,0.00021001,2]
[312556653,1705987798381,586.9151881,0.00021001,2]
[312556664,1705987831838,-756.0595699,0.00021004,2]
[312556665,1705987831849,-461.57652245,0.00021004,2]
[312556666,1705987831861,-309.89390765,0.00021004,2]
[312556667,1705987831870,-543.71,0.0002101,2]
[312556668,1705987831878,-155.6014896,0.00021018,2]
[312556669,1705987831897,-1844.3985104,0.00021018,2]
[312556670,1705987831907,-123.5320015,0.00021018,2]
[312556671,1705987831918,-26.4679985,0.00021018,2]
[312556672,1705987831927,-797.32083837,0.00021026,2]
[312556673,1705987831939,-231.84916163,0.00021026,2]
[312556674,1705987831948,-34.71983837,0.00021029,2]
[312556675,1705987832011,-622.59271794,0.00021029,2]
[312556676,1705987832023,-1033.7,0.00021029,2]
[312556677,1705987832034,-300.0,0.00021029,2]
[312556678,1705987832073,-236.79744369,0.00021029,2]
[312556679,1705987832082,-300.0,0.0002105,2]
[312556680,1705987832091,-102.07228105,0.00021051,2]
[312556681,1705987832102,-86.83771895,0.00021051,2]
[312556682,1705987832111,-500.0,0.00021053,2]
[312556683,1705987832120,-200.0,0.00021053,2]
[312556684,1705987832129,-325.95,0.00021057,2]
[312556685,1705987832140,-229.49,0.00021062,2]
[312556686,1705987832148,-757.63266515,0.00021064,2]
[312556687,1705987832163,-1464.37708173,0.00021064,2]
[312556691,1705987834083,206.0,0.00020002,2]
[312556696,1705987838206,-750.0,0.00021041,2]
[312556697,1705987838216,-4062.47025312,0.00021064,2]
[312556698,1705987838225,-504.68,0.00021068,2]
[312556699,1705987838235,-1852.42,0.00021068,2]
[312556700,1705987838244,-171.79,0.00021083,2]
[312556701,1705987838253,-495.32,0.00021114,2]
[312556702,1705987838262,-2705.0,0.00021139,2]
[312556703,1705987838271,-160.06,0.00021253,2]
[312556704,1705987838280,-270.31068666,0.0002129,2]
[312556705,1705987838290,-154.93,0.00021291,2]
[312556706,1705987838299,-488.23,0.0002144,2]
[312556707,1705987838309,-170.57,0.00021644,2]
[312556708,1705987838318,-200.0,0.00021697,2]
[312556709,1705987838327,-155.36,0.0002178,2]
[312556710,1705987838336,-154.93,0.00021863,2]
[312556711,1705987838346,-165.3,0.00021892,2]
[312556712,1705987838355,-721.8,0.00021907,2]
[312556713,1705987838365,-730.03,0.00021917,2]
[312556714,1705987838375,-206.0,0.00022002,4]
[312556715,1705987838385,-709.85,0.00022017,2]
[312556716,1705987838394,-240.57,0.00022101,2]
[312556717,1705987838403,-710.46,0.00022175,2]
[312556718,1705987838413,-160.06,0.0002236,2]
[312556719,1705987838423,-657.87687413,0.00022411,3]
[312556721,1705987838432,-713.69,0.00022411,2]
[312556723,1705987838442,-711.95,0.00022411,2]
[312556724,1705987838451,-154.93,0.00022435,2]
[312556725,1705987838461,-1382.3101,0.00022569,2]
[312556726,1705987838470,-1527.53,0.00022648,2]
[312556727,1705987838479,-719.2,0.00022694,2]
[312556729,1705987838488,-173.5183,0.00022698,2]
[312556731,1705987838497,-16954.3444,0.00022698,2]
[312556733,1705987838506,-274.73174566,0.00022766,2]
[312556735,1705987838516,-724.14,0.00022767,2]
[312556737,1705987838525,-737.03,0.00022768,2]
[312556739,1705987838534,-737.69,0.00022768,2]
[312556742,1705987838543,-14682.47209765,0.00022768,2]
[312556743,1705987838552,-70100.4926,0.00022798,2]
[312556745,1705987838562,-160.0,0.00022897,2]
[312556747,1705987838574,-5799.01377456,0.000229,2]
[312556748,1705987838627,-16006.17264318,0.000229,2]
[312556749,1705987838649,-1378.25040696,0.000229,2]
[312556751,1705987841120,-368.59464961,0.000229,2]
[312556764,1705987842869,-301.92261199,0.000229,2]
[312556775,1705987860020,1303.30270929,0.00020696,2]
[312556776,1705987864310,204.0,0.00020002,2]
[312556777,1705987879999,223.5592839,0.00020609,2]
[312556778,1705987922074,300.0,0.00020902,2]
[312556781,1705988063687,476.26,0.00019933,2]
[312556782,1705988066851,159.93894992,0.00020952,2]
[312556785,1705988123554,-250.0,0.000228,3]
[312556786,1705988233339,956.84,0.00019991,7]
[312556790,1705988499003,452.44,0.00019512,2]
[312556791,1705988872230,200.0,0.000228,8]
[312556792,1705988874308,500.0,0.000229,8]
[312556793,1705988922464,429.81,0.00019399,2]
[312556794,1705988924689,174.45102702,0.00021001,2]
[312556795,1705988927179,159.93894992,0.00020906,2]
[312556796,1705988960161,1071.76587125,0.00021001,2]
[312556830,1705989038006,-2505.78776269,0.00021001,2]
[312556831,1705989038017,-206.0,0.00021002,2]
[312556832,1705989038028,-3129.45200318,0.00021002,2]
[312556833,1705989038038,-150.0,0.00021014,2]
[312556834,1705989038047,-477.82427138,0.00021043,2]
[312556835,1705989038056,-175.05631552,0.00021044,2]
[312556836,1705989038066,-4517.51593318,0.00021045,2]
[312556837,1705989038088,-424.88308538,0.00021045,2]
[312556838,1705989038156,-609.47680672,0.00021045,2]
[312556839,1705989038214,-3041.0993593,0.00021045,2]
[312556840,1705989038270,-2897.88269184,0.00021045,2]
[312556841,1705989038279,-250.0,0.00021053,2]
[312556842,1705989038288,-2000.0,0.00021053,2]
[312556843,1705989038297,-363.61358469,0.00021245,2]
[312556850,1705989040476,-564.34641531,0.00021245,2]
[312556851,1705989040486,-181.08,0.00021293,2]
[312556852,1705989040496,-156.62,0.00021299,2]
[312556853,1705989040505,-200.0,0.00021317,2]
[312556854,1705989040515,-151.53358469,0.00021372,2]
[312556855,1705989040528,-80.33641531,0.00021372,2]
[312556856,1705989040537,-1114.10276228,0.00021374,2]
[312556857,1705989041120,-865.44923091,0.00021374,2]
[312556858,1705989041132,-322.87653265,0.00021374,2]
[312556859,1705989041144,-280.69400187,0.00021374,2]
[312556860,1705989041229,-6689.60223882,0.00021374,2]
[312556861,1705989041253,-1.86069642,0.00021374,2]
[312556873,1705989043046,-3682.78470568,0.00021374,2]
[312556874,1705989043058,-10932.62983137,0.00021374,2]
[312556875,1705989043068,-213.73,0.00021376,2]
[312556876,1705989043077,-1287.91,0.00021376,2]
[312556877,1705989043086,-230.46,0.00021408,2]
[312556878,1705989043095,-403.75,0.00021416,2]
[312556879,1705989043104,-596.25,0.00021621,2]
[312556880,1705989043113,-165.43,0.00021631,2]
[312556881,1705989043122,-178.95,0.00021644,2]
[312556882,1705989043132,-429.81,0.00021663,2]
[312556883,1705989043141,-160.99,0.00021694,2]
[312556884,1705989043150,-735.28,0.00021715,2]
[312556885,1705989043159,-728.24,0.00021753,2]
[312556886,1705989043169,-156.25,0.00021895,2]
[312556887,1705989043178,-5989.25900223,0.00021918,2]
[312556891,1705989043572,-1437.00099777,0.00021918,2]
[312556892,1705989043582,-250.0,0.00021918,2]
[312556893,1705989043592,-10000.0,0.00021918,2]
[312556894,1705989043601,-160.99,0.00021977,2]
[312556895,1705989043611,-3086.57397188,0.00021982,2]
[312556896,1705989043620,-18592.94119101,0.0002199,2]
[312556897,1705989043629,-160.99,0.00022259,2]
[312556898,1705989043639,-1070.71709935,0.00022287,2]
[312556899,1705989043648,-598.14550991,0.00022287,3]
[312556900,1705989043658,-2189.3528,0.00022489,2]
[312556901,1705989043666,-12311.26507226,0.000225,2]
[312556902,1705989043676,-160.99,0.00022542,2]
[312556903,1705989043685,-1070.71709935,0.00022686,2]
[312556904,1705989043693,-178.95,0.00022712,2]
[312556905,1705989043702,-302.9692,0.000228,2]
[312556906,1705989043711,-160.99,0.00022824,2]
[312556907,1705989043721,-315.96653601,0.00022875,2]
[312556908,1705989043730,-329.13519127,0.00022887,2]
[312556909,1705989043740,-162.48711331,0.00022896,2]
[312556910,1705989043749,-266.658261,0.00022897,2]
[312556911,1705989043759,-376.98413368,0.00022897,2]
[312556912,1705989043768,-202.65714392,0.00022897,2]
[312556913,1705989043778,-717.47,0.00022898,2]
[312556914,1705989043787,-736.0,0.00022898,2]
[312556915,1705989043796,-4503.38676974,0.00022898,2]
[312556916,1705989043805,-995.72786179,0.00022898,2]
[312556917,1705989043815,-236.51778784,0.00022898,2]
[312556918,1705989043824,-199.14343326,0.00022898,2]
[312556919,1705989043833,-469.54699969,0.00022898,2]
[312556920,1705989043843,-1297.87426613,0.00022898,2]
[312556921,1705989043853,-763.73339301,0.00022898,2]
[312556922,1705989043862,-781.1768223,0.00022898,2]
[312556923,1705989043871,-176.47711632,0.00022898,2]
[312556924,1705989043881,-214.32247919,0.00022898,2]
[312556925,1705989043890,-343.94063127,0.00022898,2]
[312556926,1705989043900,-551.75797949,0.00022898,2]